fUSD/lending_fUSD_20241121
["ID","MTS","AMOUNT","RATE_DAILY","PERIOD"]
[342862557,1732188656158,-2298.92,0.00041095,18]
[342862558,1732188656167,-500.0,0.00041095,18]
[342862559,1732188656176,-500.0,0.00041095,18]
[342862560,1732188656186,-500.0,0.00041095,18]
[342862561,1732188656196,-785.15,0.00041095,18]
[342862562,1732188656319,-1118.3,0.00041095,18]
[342862563,1732188656336,-1354.57,0.00041095,18]
[342862564,1732188656346,-500.0,0.00041095,18]
[342862565,1732188656355,-5725.71,0.00041095,18]
[342862566,1732188656365,-5382.46,0.00041095,18]
[342862567,1732188656375,-1289.3,0.00041095,18]
[342862568,1732188656384,-500.0,0.00041095,18]
[342862569,1732188656396,-1123.06,0.00041095,18]
[342862570,1732188656406,-2391.16,0.00041095,18]
[342862571,1732188656415,-4214.57,0.00041095,18]
[342862572,1732188656425,-500.0,0.00041095,18]
[342862573,1732188656434,-500.0,0.00041095,18]
[342862574,1732188656444,-500.0,0.00041095,18]
[342862575,1732188656454,-1973.99,0.00041095,18]
[342862576,1732188656464,-500.0,0.00041095,18]
[342862577,1732188656474,-500.0,0.00041095,18]
[342862578,1732188656484,-3720.81,0.00041095,18]
[342862579,1732188656494,-692.95,0.00041095,18]
[342862580,1732188656504,-587.14,0.00041095,18]
[342862581,1732188656517,-1052.69,0.00041095,18]
[342862582,1732188656527,-1666.81,0.00041095,18]
[342862583,1732188656536,-839.13,0.00041095,18]
[342862584,1732188656546,-500.0,0.00041095,18]
[342862585,1732188656555,-500.0,0.00041095,18]
[342862586,1732188656564,-2485.3,0.00041095,18]
[342862587,1732188656574,-1725.95,0.00041095,18]
[342862588,1732188656584,-500.0,0.00041095,18]
[342862589,1732188656594,-500.0,0.00041095,18]
[342862590,1732188656603,-500.0,0.00041095,18]
[342862591,1732188656613,-500.0,0.00041095,18]
[342862592,1732188656622,-957.79,0.00041095,18]
[342862593,1732188656631,-500.0,0.00041095,18]
[342862594,1732188656643,-2376.01,0.00041095,18]
[342862595,1732188656652,-500.0,0.00041095,18]
[342862596,1732188656661,-164.02678883,0.00041095,18]
[342862597,1732188656671,-500.0,0.00041095,18]
[342862598,1732188656680,-150.0,0.00041095,18]
[342862599,1732188656689,-500.0,0.00041095,2]
[342862600,1732188656699,-500.0,0.00041095,2]
[342862601,1732188656708,-1965.99,0.00041095,18]
[342862602,1732188656717,-560.53,0.00041095,18]
[342862603,1732188656726,-1399.78,0.00041095,18]
[342862604,1732188656736,-2355.79,0.00041095,18]
[342862605,1732188656747,-1258.48,0.00041095,18]
[342862606,1732188656756,-675.65,0.00041095,18]
[342862607,1732188656765,-502.1234858,0.00041095,7]
[342862608,1732188656774,-500.0,0.00041095,18]
[342862609,1732188656783,-500.0,0.00041095,18]
[342862610,1732188656792,-249.430851,0.00041095,14]
[342862611,1732188656801,-35583.73,0.00041095,18]
[342862612,1732188656811,-666.1,0.00041095,18]
[342862613,1732188656820,-2229.35,0.00041095,18]
[342862614,1732188656830,-2665.6,0.00041095,18]
[342862615,1732188656839,-500.0,0.00041095,18]
[342862616,1732188656848,-6580.77,0.00041095,18]
[342862617,1732188656858,-612.74759384,0.00041095,18]
[342862618,1732188656867,-878.89,0.00041095,18]
[342862619,1732188656876,-563.69,0.00041095,18]
[342862620,1732188656886,-3590.91,0.00041095,18]
[342862621,1732188656896,-500.0,0.00041095,18]
[342862622,1732188656906,-500.0,0.00041095,18]
[342862623,1732188656915,-876.1,0.00041095,18]
[342862624,1732188656925,-500.0,0.00041095,18]
[342862625,1732188656935,-973.21,0.00041095,18]
[342862626,1732188656945,-2469.38,0.00041095,18]
[342862627,1732188656954,-500.0,0.00041095,18]
[342862628,1732188656964,-3385.18,0.00041095,18]
[342862629,1732188656974,-1412.89,0.00041095,18]
[342862630,1732188656983,-500.0,0.00041095,18]
[342862631,1732188656993,-500.0,0.00041095,18]
[342862632,1732188657003,-1186.29,0.00041095,18]
[342862633,1732188657012,-928.55,0.00041095,18]
[342862634,1732188657022,-2532.81,0.00041095,18]
[342862635,1732188657031,-500.0,0.00041095,18]
[342862636,1732188657041,-597.33,0.00041095,18]
[342862637,1732188657051,-500.0,0.00041095,18]
[342862638,1732188657060,-151.0,0.00041095,14]
[342862639,1732188657070,-500.0,0.00041095,18]
[342862640,1732188657080,-151.0,0.00041095,14]
[342862641,1732188657089,-151.0,0.00041095,14]
[342862642,1732188657099,-5000.0,0.00041095,18]
[342862643,1732188657108,-880.87,0.00041095,18]
[342862644,1732188657118,-500.0,0.00041095,18]
[342862645,1732188657128,-151.0,0.00041095,14]
[342862646,1732188657138,-244.539534,0.00041095,14]
[342862647,1732188657150,-1149.5,0.00041095,18]
[342862648,1732188657159,-1952.46,0.00041095,18]
[342862649,1732188657170,-1845.58,0.00041095,18]
[342862650,1732188657180,-500.0,0.00041095,18]
[342862651,1732188657190,-1806.66,0.00041095,18]
[342862652,1732188657200,-3016.8,0.00041095,18]
[342862653,1732188657209,-1926.49,0.00041095,18]
[342862654,1732188657218,-5514.69,0.00041095,18]
[342862655,1732188657228,-611.61,0.00041095,18]
[342862656,1732188657238,-505.09,0.00041095,18]
[342862657,1732188657248,-2328.41,0.00041095,18]
[342862658,1732188657258,-1467.42,0.00041095,18]
[342862659,1732188657267,-500.0,0.00041095,18]
[342862660,1732188657277,-500.0,0.00041095,18]
[342862661,1732188657286,-1638.18,0.00041095,18]
[342862662,1732188657296,-500.0,0.00041095,18]
[342862663,1732188657306,-500.0,0.00041095,18]
[342862664,1732188657316,-500.0,0.00041095,18]
[342862665,1732188657325,-552.14,0.00041095,18]
[342862666,1732188657335,-1047.22,0.00041095,18]
[342862667,1732188657344,-574.0,0.00041095,18]
[342862668,1732188657354,-500.0,0.00041095,18]
[342862669,1732188657363,-587.08,0.00041095,18]
[342862670,1732188657373,-4713.39,0.00041095,18]
[342862671,1732188657383,-500.0,0.00041095,18]
[342862672,1732188657394,-500.0,0.00041095,18]
[342862673,1732188657403,-508.09,0.00041095,18]
[342862674,1732188657413,-735.78,0.00041095,18]
[342862675,1732188657422,-500.0,0.00041095,18]
[342862676,1732188657432,-320.56816553,0.00041095,18]
[342862677,1732188657442,-547.09,0.00041095,18]
[342862678,1732188657452,-500.0,0.00041095,18]
[342862679,1732188657461,-500.0,0.00041095,18]
[342862680,1732188657470,-4035.56,0.00041095,18]
[342862681,1732188657479,-587.36,0.00041095,18]
[342862682,1732188657489,-1488.63,0.00041095,18]
[342862683,1732188657499,-500.0,0.00041095,18]
[342862684,1732188657508,-500.0,0.00041095,18]
[342862685,1732188657518,-500.0,0.00041095,18]
[342862686,1732188657528,-3784.72,0.00041095,18]
[342862687,1732188657538,-500.0,0.00041095,18]
[342862688,1732188657547,-500.0,0.00041095,18]
[342862689,1732188657557,-500.0,0.00041095,18]
[342862690,1732188657567,-1690.59,0.00041095,18]
[342862691,1732188657576,-2577.87,0.00041095,18]
[342862692,1732188657586,-500.0,0.00041095,18]
[342862693,1732188657597,-500.0,0.00041095,18]
[342862694,1732188657608,-1285.05,0.00041095,18]
[342862695,1732188657618,-500.0,0.00041095,18]
[342862696,1732188657627,-1182.44,0.00041095,18]
[342862697,1732188657637,-500.0,0.00041095,18]
[342862698,1732188657648,-6154.96,0.00041095,18]
[342862699,1732188657660,-12236.31,0.00041095,18]
[342862700,1732188657671,-8215.0,0.00041095,18]
[342862701,1732188657681,-2766.53,0.00041095,18]
[342862702,1732188657691,-151.0,0.00041095,14]
[342862703,1732188657700,-722.78,0.00041095,18]
[342862704,1732188657710,-1502.28,0.00041095,18]
[342862705,1732188657719,-151.0,0.00041095,14]
[342862706,1732188657729,-970.82,0.00041095,18]
[342862707,1732188657738,-151.0,0.00041095,14]
[342862708,1732188657748,-3377.62,0.00041095,18]
[342862709,1732188657757,-500.0,0.00041095,18]
[342862710,1732188657766,-2592.55,0.00041095,18]
[342862711,1732188657775,-1622.3,0.00041095,18]
[342862712,1732188657785,-2098.87,0.00041095,18]
[342862713,1732188657795,-500.0,0.00041095,18]
[342862714,1732188657804,-1151.93,0.00041095,18]
[342862715,1732188657813,-573.44,0.00041095,18]
[342862716,1732188657823,-500.0,0.00041095,18]
[342862717,1732188657832,-1732.82,0.00041095,18]
[342862718,1732188657842,-151.0,0.00041095,14]
[342862719,1732188657852,-500.0,0.00041095,18]
[342862720,1732188657861,-151.0,0.00041095,14]
[342862721,1732188657871,-151.0,0.00041095,14]
[342862722,1732188657880,-1797.13,0.00041095,18]
[342862723,1732188657890,-12452.07,0.00041095,18]
[342862724,1732188657901,-500.0,0.00041095,18]
[342862725,1732188657910,-1226.24,0.00041095,7]
[342862726,1732188657920,-1069.89,0.00041095,18]
[342862727,1732188657929,-598.72,0.00041095,18]
[342862728,1732188657939,-538.72,0.00041095,18]
[342862729,1732188657948,-996.04,0.00041095,18]
[342862730,1732188657958,-13776.47,0.00041095,18]
[342862731,1732188657969,-1089.01,0.00041095,18]
[342862732,1732188657979,-500.0,0.00041095,18]
[342862733,1732188657988,-151.0,0.00041095,14]
[342862734,1732188657998,-1332.38,0.00041095,18]
[342862735,1732188658008,-1141.201856,0.00041095,14]
[342862736,1732188658018,-151.0,0.00041095,14]
[342862737,1732188658027,-151.0,0.00041095,14]
[342862738,1732188658037,-1141.201856,0.00041095,14]
[342862739,1732188658046,-500.0,0.00041095,18]
[342862740,1732188658056,-151.0,0.00041095,14]
[342862741,1732188658065,-1080.57,0.00041095,18]
[342862742,1732188658075,-232.177212,0.00041095,14]
[342862743,1732188658084,-7498.2,0.00041095,18]
[342862744,1732188658094,-1008.03,0.00041095,18]
[342862745,1732188658104,-1000.0,0.00041095,120]
[342862746,1732188658113,-1141.201856,0.00041095,14]
[342862747,1732188658123,-500.0,0.00041095,18]
[342862748,1732188658133,-800.1,0.00041095,18]
[342862749,1732188658143,-1141.201856,0.00041095,14]
[342862750,1732188658153,-500.0,0.00041095,18]
[342862751,1732188658162,-766.38,0.00041095,18]
[342862752,1732188658172,-500.0,0.00041095,18]
[342862753,1732188658182,-1054.62,0.00041095,18]
[342862754,1732188658193,-1536.29,0.00041095,18]
[342862755,1732188658204,-500.0,0.00041095,18]
[342862756,1732188658216,-2420.48,0.00041095,18]
[342862757,1732188658231,-988.07,0.00041095,18]
[342862758,1732188658243,-563.94,0.00041095,18]
[342862759,1732188658254,-500.0,0.00041095,18]
[342862760,1732188658264,-500.0,0.00041095,18]
[342862761,1732188658273,-2555.1,0.00041095,18]
[342862762,1732188658283,-1431.76,0.00041095,18]
[342862763,1732188658292,-505.35640373,0.00041095,18]
[342862764,1732188658302,-500.0,0.00041095,18]
[342862765,1732188658311,-500.0,0.00041095,18]
[342862766,1732188658321,-967.52,0.00041095,18]
[342862767,1732188658330,-502.18611248,0.00041095,18]
[342862768,1732188658339,-1152.01,0.00041095,18]
[342862769,1732188658348,-2046.39,0.00041095,18]
[342862770,1732188658357,-503.63,0.00041095,18]
[342862771,1732188658367,-500.0,0.00041095,18]
[342862772,1732188658376,-1754.51,0.00041095,18]
[342862773,1732188658385,-500.0,0.00041095,18]
[342862774,1732188658396,-1311.64,0.00041095,18]
[342862775,1732188658405,-556.81,0.00041095,18]
[342862776,1732188658430,-500.0,0.00041095,18]
[342862777,1732188658441,-500.0,0.00041095,18]
[342862778,1732188658451,-959.48,0.00041095,18]
[342862779,1732188658789,-500.0,0.00041095,18]
[342862780,1732188658800,-500.0,0.00041095,18]
[342862781,1732188658809,-916.1,0.00041095,18]
[342862782,1732188658821,-500.0,0.00041095,14]
[342862783,1732188658840,-500.0,0.00041095,18]
[342862784,1732188658852,-2122.83,0.00041095,18]
[342862785,1732188658861,-15097.5,0.00041095,18]
[342862786,1732188658871,-5225.89,0.00041095,18]
[342862787,1732188658880,-3498.65,0.00041095,18]
[342862788,1732188658890,-500.0,0.00041095,18]
[342862789,1732188658903,-6039.47,0.00041095,18]
[342862790,1732188658913,-1234.03,0.00041095,18]
[342862791,1732188658922,-500.0,0.00041095,18]
[342862792,1732188658933,-1633.91,0.00041095,18]
[342862793,1732188658943,-500.0,0.00041095,18]
[342862794,1732188658953,-1405.37,0.00041095,18]
[342862795,1732188658962,-500.0,0.00041095,18]
[342862796,1732188658972,-500.0,0.00041095,18]
[342862797,1732188658981,-500.0,0.00041095,18]
[342862798,1732188658990,-1100.88,0.00041095,18]
[342862799,1732188659000,-500.0,0.00041095,18]
[342862800,1732188659010,-500.0,0.00041095,18]
[342862801,1732188659019,-538.98,0.00041095,18]
[342862802,1732188659029,-1000.0,0.00041095,5]
[342862803,1732188659039,-867.15,0.00041095,18]
[342862804,1732188659050,-3898.17,0.00041095,18]
[342862805,1732188659059,-500.0,0.00041095,18]
[342862806,1732188659069,-4319.77,0.00041095,18]
[342862807,1732188659078,-500.0,0.00041095,18]
[342862808,1732188659088,-500.0,0.00041095,18]
[342862809,1732188659098,-500.0,0.00041095,18]
[342862810,1732188659109,-500.0,0.00041095,18]
[342862811,1732188659119,-500.0,0.00041095,18]
[342862812,1732188659129,-1740.8,0.00041095,18]
[342862813,1732188659139,-1071.89,0.00041095,18]
[342862814,1732188659149,-500.0,0.00041095,18]
[342862815,1732188659158,-5084.84,0.00041095,18]
[342862816,1732188659168,-630.01,0.00041095,18]
[342862817,1732188659178,-500.0,0.00041095,18]
[342862818,1732188659187,-891.34,0.00041095,18]
[342862819,1732188659196,-500.0,0.00041095,18]
[342862820,1732188659205,-2616.29,0.00041095,18]
[342862821,1732188659214,-500.0,0.00041095,18]
[342862822,1732188659224,-500.0,0.00041095,18]
[342862823,1732188659233,-500.0,0.00041095,18]
[342862824,1732188659244,-500.0,0.00041095,18]
[342862825,1732188659253,-2722.76,0.00041095,18]
[342862826,1732188659263,-1455.65,0.00041095,18]
[342862827,1732188659272,-4177.36,0.00041095,18]
[342862828,1732188659281,-734.15,0.00041095,18]
[342862829,1732188659291,-504.18,0.00041095,18]
[342862830,1732188659300,-500.0,0.00041095,18]
[342862831,1732188659309,-500.0,0.00041095,18]
[342862832,1732188659320,-1040.66,0.00041095,120]
[342862833,1732188659331,-500.0,0.00041095,18]
[342862834,1732188659342,-1040.66,0.00041095,120]
[342862835,1732188659352,-67808.81,0.00041095,5]
[342862836,1732188659362,-2050.3,0.00041095,18]
[342862837,1732188659372,-1040.66,0.00041095,120]
[342862838,1732188659381,-1040.66,0.00041095,120]
[342862839,1732188659391,-500.0,0.00041095,18]
[342862840,1732188659402,-1040.66,0.00041095,120]
[342862841,1732188659412,-1040.66,0.00041095,120]
[342862842,1732188659422,-965.74,0.00041095,18]
[342862843,1732188659432,-500.0,0.00041095,18]
[342862844,1732188659442,-500.0,0.00041095,18]
[342862845,1732188659451,-2813.38,0.00041095,18]
[342862846,1732188659460,-831.16,0.00041095,18]
[342862847,1732188659470,-745.98,0.00041095,18]
[342862848,1732188659479,-500.0,0.00041095,18]
[342862849,1732188659488,-646.81,0.00041095,18]
[342862850,1732188659498,-500.0,0.00041095,18]
[342862851,1732188659508,-1269.42,0.00041095,18]
[342862852,1732188659521,-500.0,0.00041095,18]
[342862853,1732188659530,-500.0,0.00041095,18]
[342862854,1732188659540,-764.41,0.00041096,2]
[342862855,1732188659551,-860.15,0.00041096,2]
[342862856,1732188659560,-150.0,0.00041096,2]
[342862857,1732188659569,-150.0,0.00041099,2]
[342862858,1732188659579,-180.15747345,0.000411,2]
[342862859,1732188659589,-4417.68762048,0.00041101,15]
[342862860,1732188659599,-150.0,0.00041103,2]
[342862861,1732188659608,-227.10514305,0.00041105,28]
[342862862,1732188659618,-150.0,0.00041121,2]
[342862863,1732188659627,-16424.46514395,0.00041126,15]
[342862864,1732188659636,-150.0,0.00041127,2]
[342862865,1732188659646,-150.0,0.00041135,2]
[342862866,1732188659655,-150.0,0.00041136,2]
[342862867,1732188659664,-150.0,0.00041138,2]
[342862868,1732188659673,-150.0,0.00041144,2]
[342862869,1732188659684,-150.0,0.00041162,2]
[342862870,1732188659694,-150.0,0.00041162,2]
[342862871,1732188659703,-150.0,0.00041164,2]
[342862872,1732188659713,-150.0,0.00041167,2]
[342862873,1732188659723,-150.0,0.00041179,2]
[342862874,1732188659733,-150.0,0.00041188,2]
[342862875,1732188659743,-150.0,0.00041191,2]
[342862876,1732188659753,-150.0,0.00041192,2]
[342862877,1732188659763,-150.0,0.00041196,2]
[342862878,1732188659774,-1001.0,0.000412,18]
[342862879,1732188659784,-150.0,0.00041201,2]
[342862880,1732188659793,-300.0,0.00041208,2]
[342862881,1732188659804,-150.0,0.00041211,2]
[342862882,1732188659814,-300.0,0.00041212,2]
[342862883,1732188659824,-150.0,0.00041214,2]
[342862884,1732188659833,-150.0,0.00041217,2]
[342862885,1732188659843,-150.0,0.00041222,2]
[342862886,1732188659852,-150.0,0.00041233,2]
[342862887,1732188659862,-1500.0,0.00041244,7]
[342862888,1732188659872,-300.0,0.00041252,2]
[342862889,1732188659881,-150.0,0.00041257,2]
[342862890,1732188659892,-150.0,0.00041259,2]
[342862891,1732188659902,-2542.68060142,0.00041269,2]
[342862892,1732188659911,-407.06199118,0.00041269,2]
[342862893,1732188659921,-150.0,0.0004127,2]
[342862894,1732188659931,-626.58020013,0.00041271,7]
[342862895,1732188659941,-150.0,0.00041271,2]
[342862896,1732188659951,-150.0,0.00041281,2]
[342862897,1732188659960,-150.0,0.00041285,2]
[342862898,1732188659970,-150.0,0.00041288,2]
[342862899,1732188659980,-957.32651,0.00041288,30]
[342862900,1732188659990,-158.0,0.000413,44]
[342862901,1732188660000,-150.0,0.00041304,2]
[342862902,1732188660011,-150.0,0.00041305,2]
[342862903,1732188660021,-150.0,0.00041307,2]
[342862904,1732188660031,-150.0,0.0004131,2]
[342862905,1732188660041,-227.10514305,0.00041315,28]
[342862906,1732188660052,-150.0,0.00041316,2]
[342862907,1732188660062,-200.0,0.0004132,120]
[342862908,1732188660073,-150.0,0.0004132,2]
[342862909,1732188660084,-150.0,0.00041321,2]
[342862910,1732188660095,-2110.0,0.00041334,30]
[342862911,1732188660105,-151.0,0.00041334,14]
[342862912,1732188660115,-151.0,0.00041334,14]
[342862913,1732188660126,-150.0,0.00041338,2]
[342862914,1732188660137,-150.0,0.00041347,2]
[342862915,1732188660148,-150.0,0.00041358,2]
[342862916,1732188660158,-7189.610474,0.0004136,2]
[342862917,1732188660168,-500.0,0.00041367,2]
[342862918,1732188660179,-1040.66,0.00041367,120]
[342862919,1732188660190,-359.02260083,0.00041368,120]
[342862920,1732188660200,-500.0,0.00041368,2]
[342862921,1732188660211,-500.0,0.00041368,2]
[342862922,1732188660220,-500.0,0.00041368,2]
[342862923,1732188660230,-500.0,0.00041368,2]
[342862924,1732188660239,-500.0,0.00041368,2]
[342862925,1732188660249,-500.0,0.00041368,18]
[342862926,1732188660258,-500.0,0.00041368,18]
[342862927,1732188660268,-254.11656014,0.00041368,18]
[342862928,1732188660277,-1040.66,0.00041368,120]
[342862929,1732188660287,-786.57246833,0.00041368,120]
[342862930,1732188661235,-254.08753167,0.00041368,120]
[342862931,1732188661245,-1040.66,0.00041368,120]
[342862932,1732188661255,-1040.66,0.00041368,120]
[342862933,1732188661264,-1040.66,0.00041368,120]
[342862934,1732188661273,-1040.66,0.00041368,120]
[342862935,1732188661282,-5367.47246833,0.00041369,3]
[342862936,1732188662215,-153.90519587,0.000329,2]
[342862937,1732188662224,-2263.79480413,0.00041369,3]
[342862938,1732188662235,-47462.9399999,0.00041369,3]
[342862939,1732188662324,-782.024,0.00041369,3]
[342862940,1732188662335,-958.66233669,0.00041369,3]
[342862941,1732188662347,-1229.80027102,0.00041369,3]
[342862942,1732188662358,-1570.95000001,0.00041369,3]
[342862943,1732188662369,-2241.6500005,0.00041369,3]
[342862944,1732188662430,-29410.56250188,0.00041369,3]
[342862945,1732188662461,-979.2795947,0.00041369,3]
[342862946,1732188662472,-257.57965979,0.00041369,3]
[342862947,1732188662483,-6167.90000008,0.00041369,3]
[342862948,1732188662494,-8625.52810003,0.00041369,3]
[342862949,1732188662524,-9795.5,0.00041369,3]
[342862950,1732188662599,-1102.18272548,0.00041369,3]
[342862951,1732188662611,-2419.7883,0.00041369,3]
[342862952,1732188667049,364.361,0.00025,2]
[342862953,1732188671130,295.97225,0.00028635,2]
[342862954,1732188673368,163.887,0.00028533,2]
[342862955,1732188944932,150.0,9e-05,2]
[342862956,1732188944955,150.0,9e-05,2]
[342862957,1732188944978,150.0,9e-05,2]
[342862958,1732188945000,150.0,9e-05,2]
[342862959,1732188945022,150.0,9e-05,2]
[342862960,1732188945044,150.0,9e-05,2]
[342862961,1732188945071,5819.89570175,9e-05,2]
[342862962,1732188964660,6799.85760213,9e-05,2]
[342862963,1732188964695,14150.26585272,9e-05,2]
[342862965,1732189450381,150.0,0.00011941,2]
[342862966,1732189450402,150.0,0.00011941,2]
[342862967,1732189450424,9.75373091,0.00011941,2]
[342862968,1732189538115,-157.08,0.00015342,2]
[342862969,1732189538137,-500.0,0.00024932,2]
[342862970,1732189538158,-364.361,0.00025,2]
[342862971,1732189538179,-157.08,0.00026401,2]
[342862972,1732189538200,-246.4226793,0.00026986,120]
[342862973,1732189549083,-137.9273207,0.00026986,120]
[342862974,1732189549105,-273.02221004,0.00029387,2]
[342862975,1732189549127,-150.0,0.00029452,2]
[342862976,1732189549152,-328.84025,0.00029487,2]
[342862977,1732189549174,-155.7,0.00029643,2]
[342862978,1732189549195,-899.04873439,0.000299,2]
[342862979,1732189549218,-151.0,0.0003,120]
[342862980,1732189549239,-151.0,0.0003,120]
[342862981,1732189549261,-735.75576461,0.000305,30]
[342862982,1732189549282,-165.21,0.00031314,2]
[342862983,1732189549306,-148.14418385,0.00031314,2]
[342862984,1732189634095,-150.0,0.00016862,2]
[342862985,1732189634117,-364.361,0.00025,2]
[342862986,1732189634138,-165.21,0.00029188,2]
[342862987,1732189634159,-200.0,0.00031313,30]
[342862988,1732189634180,-2251.1234096,0.00031314,10]
[342862989,1732189636101,-5410.49431153,0.00031314,10]
[342862990,1732189637667,-1436.31897179,0.00031314,10]
[342862991,1732189644093,-362.27397148,0.00016862,2]
[342862994,1732189745773,-157.02,0.00015342,2]
[342862995,1732189745796,-1049.02124599,0.00016862,2]
[342862996,1732189745820,-150.0,0.0001854,2]
[342862997,1732189745843,-157.02,0.00028858,2]
[342862998,1732189745865,-2839.844543,0.00030901,2]
[342862999,1732189745890,-2519.38135709,0.00031057,2]
[342863000,1732189745910,-599.36582292,0.00031214,2]
[342863001,1732189745935,-2801.38330708,0.00031314,10]
[342863002,1732189745958,-2689.68734392,0.000319,3]
[342863003,1732189764095,-200.0,0.0002701,2]
[342863004,1732189764120,-200.0,0.0002829,30]
[342863005,1732189764148,-200.0,0.0002957,30]
[342863006,1732189764173,-200.0,0.0003084,30]
[342863007,1732189764197,-2682.31265608,0.000319,3]
[342863008,1732189764220,-200.0,0.0003212,30]
[342863009,1732189764244,-6187.12693001,0.000327,5]
[342863010,1732189765114,-150.18114592,0.000327,5]
[342863014,1732189772088,-150.0,0.00016877,2]
[342863022,1732189833322,-5221.0,0.000324,5]
[342863023,1732189833332,-200.0,0.000334,30]
[342863024,1732189833342,-599.36582291,0.00033773,2]
[342863025,1732189833352,-400.0,0.00033834,2]
[342863026,1732189833362,-4284.6358438,0.00033835,2]
[342863027,1732189833372,-165.21,0.00034052,2]
[342863028,1732189833383,-1681.23,0.00034079,2]
[342863029,1732189833393,-209.82,0.00034079,20]
[342863030,1732189833403,-589.11,0.00034079,2]
[342863031,1732189833412,-150.0,0.00034548,10]
[342863032,1732189833422,-200.0,0.0003468,30]
[342863033,1732189833431,-150.0,0.00034918,4]
[342863034,1732189833441,-583.02674897,0.00035025,2]
[342863035,1732189833451,-177.295,0.00035229,41]
[342863036,1732189833462,-1625.045,0.00035229,41]
[342863037,1732189833472,-150.0,0.0003564,2]
[342863038,1732189833482,-159.51,0.00035913,120]
[342863039,1732189833492,-200.0,0.0003596,30]
[342863040,1732189833502,-250.0,0.00035968,2]
[342863041,1732189833512,-1000.0,0.00035984,2]
[342863042,1732189833522,-2258.45,0.00035985,2]
[342863043,1732189833532,-913.83,0.00036038,2]
[342863044,1732189833542,-3054.6,0.00036048,2]
[342863045,1732189833552,-855.0,0.00036048,2]
[342863046,1732189833562,-200.0,0.00036093,2]
[342863047,1732189833582,-150.41,0.00036239,2]
[342863048,1732189833592,-228.53,0.00036256,2]
[342863049,1732189833603,-3445.75,0.00036264,2]
[342863050,1732189833613,-1814.19,0.00036268,2]
[342863051,1732189833625,-449.43,0.00036309,2]
[342863052,1732189833634,-560.0,0.00036322,2]
[342863053,1732189833645,-3987.76,0.00036323,2]
[342863054,1732189833655,-366.86,0.0003633,120]
[342863055,1732189833664,-599.36582291,0.00036331,2]
[342863056,1732189833675,-1681.23,0.00036343,2]
[342863057,1732189833685,-180.13,0.00036392,120]
[342863058,1732189833695,-292.08,0.0003641,120]
[342863059,1732189833705,-250.0,0.00036431,2]
[342863060,1732189833715,-250.0,0.00036432,120]
[342863061,1732189833725,-2000.0,0.00036467,120]
[342863062,1732189833735,-802.9,0.0003647,2]
[342863063,1732189833745,-250.0,0.00036471,2]
[342863064,1732189833755,-200.0,0.00036476,2]
[342863065,1732189833764,-239.99,0.00036476,2]
[342863066,1732189833774,-2751.0,0.00036532,120]
[342863067,1732189833784,-200.0,0.00036945,2]
[342863068,1732189833795,-3642.03,0.00036947,2]
[342863069,1732189833805,-163.887,0.00036974,2]